fUSD/lending_fUSD_20251102
["ID","MTS","AMOUNT","RATE_DAILY","PERIOD"]
[392885799,1762107144855,500.0,0.00030136,120]
[392885800,1762107145440,500.0,0.00030136,120]
[392885801,1762107145502,1488.43,0.00030136,120]
[392885802,1762107146374,500.0,0.00030136,120]
[392885803,1762107147825,2028.68,0.00030136,120]
[392885804,1762107148648,658.03,0.00030136,120]
[392885805,1762107148899,500.0,0.00030136,120]
[392885806,1762107149402,477.47589767,0.00030136,120]
[392885807,1762107149970,569.38,0.00030136,120]
[392885808,1762107150384,500.0,0.00030136,120]
[392885809,1762107150430,500.0,0.00030136,120]
[392885810,1762107151187,500.0,0.00030136,120]
[392885811,1762107151344,347.9470832,0.00030136,120]
[392885812,1762107152617,500.0,0.00030136,120]
[392885813,1762107155271,500.0,0.00030136,120]
[392885814,1762107157859,500.0,0.00030136,120]
[392885815,1762107159104,500.0,0.00030136,120]
[392885816,1762107159733,500.0,0.00030136,120]
[392885817,1762107160123,609.1,0.00030136,120]
[392885818,1762107160269,500.0,0.00030136,120]
[392885819,1762107160828,500.0,0.00030136,120]
[392885820,1762107161153,500.0,0.00030136,120]
[392885822,1762107161658,500.0,0.00030136,120]
[392885823,1762107161772,500.0,0.00030136,120]
[392885824,1762107162381,449.64084771,0.00030136,120]
[392885825,1762107163723,500.0,0.00030136,120]
[392885826,1762107164126,500.0,0.00030136,120]
[392885827,1762107164875,645.94,0.00030136,120]
[392885828,1762107165729,500.0,0.00030136,120]
[392885829,1762107166617,500.0,0.00030136,120]
[392885830,1762107167858,500.0,0.00030136,120]
[392885831,1762107168721,500.0,0.00030136,120]
[392885832,1762107168887,500.0,0.00030136,120]
[392885833,1762107170354,-893.21759391,0.00014604,2]
[392885834,1762107170471,522.16519864,0.00030136,120]
[392885835,1762107170648,500.0,0.00030136,120]
[392885836,1762107170784,500.0,0.00030136,120]
[392885837,1762107170865,500.0,0.00030136,120]
[392885838,1762107171211,500.0,0.00030136,120]
[392885839,1762107171464,500.0,0.00030136,120]
[392885840,1762107171716,500.0,0.00030136,120]
[392885841,1762107171881,500.0,0.00030136,120]
[392885842,1762107172178,500.0,0.00030136,120]
[392885843,1762107172223,519.8261845,0.00030136,120]
[392885844,1762107173765,583.79415831,0.00030136,120]
[392885845,1762107173821,500.0,0.00030136,120]
[392885846,1762107174262,500.0,0.00030136,120]
[392885847,1762107175206,951.82525197,0.00030136,120]
[392885848,1762107176106,500.0,0.00030136,120]
[392885849,1762107176159,500.0,0.00030136,120]
[392885850,1762107177101,500.0,0.00030136,120]
[392885851,1762107177506,500.0,0.00030136,120]
[392885852,1762107178351,500.0,0.00030136,120]
[392885853,1762107178655,500.0,0.00030136,120]
[392885854,1762107178725,522.5336863,0.00030136,120]
[392885855,1762107178792,500.0,0.00030136,120]
[392885856,1762107179886,500.0,0.00030136,120]
[392885857,1762107180532,500.0,0.00030136,120]
[392885858,1762107180727,1019.74,0.00030136,120]
[392885859,1762107182647,500.0,0.00030136,120]
[392885860,1762107182694,681.78,0.00030136,120]
[392885861,1762107182777,500.0,0.00030136,120]
[392885862,1762107182823,500.0,0.00030136,120]
[392885863,1762107182985,500.0,0.00030136,120]
[392885864,1762107184869,500.0,0.00030136,120]
[392885865,1762107186144,500.0,0.00030136,120]
[392885866,1762107186501,988.5,0.00030136,120]
[392885867,1762107188564,500.0,0.00030136,120]
[392885868,1762107189080,500.0,0.00030136,120]
[392885869,1762107190373,500.0,0.00030136,120]
[392885870,1762107190538,639.45772117,0.00030136,120]
[392885871,1762107191033,622.53868671,0.00030136,120]
[392885872,1762107191761,500.0,0.00030136,120]
[392885873,1762107192268,629.08,0.00030136,120]
[392885874,1762107192722,500.0,0.00030136,120]
[392885875,1762107192970,320.80424556,0.00030136,120]
[392885876,1762107195267,227.60788711,0.00030136,120]
[392885877,1762107195817,281.53986711,0.00030136,120]
[392885878,1762107197169,500.0,0.00030136,120]
[392885879,1762107197469,500.0,0.00030136,120]
[392885880,1762107198237,500.0,0.00030136,120]
[392885881,1762107198295,555.98400347,0.00030136,120]
[392885882,1762107199673,500.0,0.00030136,120]
[392885883,1762107199745,500.0,0.00030136,120]
[392885884,1762107199806,500.0,0.00030136,120]
[392885885,1762107202023,500.0,0.00030136,120]
[392885886,1762107202112,500.0,0.00030136,120]
[392885887,1762107202317,860.49,0.00030136,120]
[392885888,1762107202718,500.0,0.00030136,120]
[392885889,1762107203015,500.0,0.00030136,120]
[392885890,1762107203424,500.0,0.00030136,120]
[392885891,1762107203472,500.0,0.00030136,120]
[392885892,1762107203678,500.0,0.00013356,2]
[392885893,1762107204746,500.0,0.00030136,120]
[392885894,1762107205000,500.0,0.00030136,120]
[392885895,1762107206552,290.08142837,0.00030136,120]
[392885896,1762107206797,832.44,0.00030136,120]
[392885897,1762107206861,790.96,0.00030136,120]
[392885898,1762107206913,500.0,0.00030136,120]
[392885899,1762107208684,767.42,0.00030136,120]
[392885900,1762107208772,500.0,0.00030136,120]
[392885901,1762107210305,500.0,0.00030136,120]
[392885902,1762107211074,500.0,0.00030136,120]
[392885903,1762107211229,500.0,0.00030136,120]
[392885904,1762107211687,500.0,0.00030136,120]
[392885905,1762107211741,500.0,0.00030136,120]
[392885906,1762107212218,521.96796341,0.00030136,120]
[392885907,1762107212702,500.0,0.00030136,120]
[392885908,1762107214362,500.0,0.00030136,120]
[392885909,1762107214417,346.69073182,0.00030136,120]
[392885910,1762107214765,500.0,0.00030136,120]
[392885911,1762107216203,500.0,0.00030136,120]
[392885912,1762107217251,212.88106564,0.00030136,120]
[392885913,1762107217818,500.0,0.00030136,120]
[392885914,1762107217981,500.0,0.00030136,120]
[392885915,1762107218626,500.0,0.00030136,120]
[392885916,1762107221159,500.0,0.00030136,120]
[392885917,1762107222118,500.0,0.00030136,120]
[392885918,1762107222545,500.0,0.00030136,120]
[392885919,1762107223646,500.0,0.00030136,120]
[392885920,1762107224164,500.0,0.00030136,120]
[392885921,1762107224436,507.02,0.00030136,120]
[392885922,1762107226027,500.0,0.00030136,120]
[392885923,1762107226240,500.0,0.00030136,120]
[392885924,1762107226882,500.0,0.00030136,120]
[392885925,1762107226930,500.0,0.00030136,120]
[392885926,1762107228631,500.0,0.00030136,120]
[392885927,1762107229990,500.0,0.00030136,120]
[392885928,1762107230997,507.7543051,0.00030136,120]
[392885929,1762107231045,500.0,0.00030136,120]
[392885930,1762107231593,500.0,0.00030136,120]
[392885931,1762107232697,500.0,0.00030136,120]
[392885932,1762107232828,500.0,0.00030136,120]
[392885933,1762107234414,507.0822828,0.00030136,120]
[392885934,1762107234859,500.0,0.00030136,120]
[392885935,1762107235913,500.0,0.00030136,120]
[392885936,1762107236016,500.0,0.00030136,120]
[392885937,1762107236274,500.0,0.00030136,120]
[392885938,1762107236835,500.0,0.00030136,120]
[392885939,1762107237145,507.05983328,0.00030136,120]
[392885940,1762107237623,500.0,0.00030136,120]
[392885941,1762107239624,500.0,0.00030136,120]
[392885942,1762107240360,500.0,0.00030136,120]
[392885944,1762107241865,500.0,0.00030136,120]
[392885945,1762107241913,500.0,0.00030136,120]
[392885946,1762107241964,1331.47,0.00030136,120]
[392885947,1762107242401,177.1840172,0.00030136,120]
[392885948,1762107243531,500.0,0.00030136,120]
[392885949,1762107244796,576.95,0.00030136,120]
[392885950,1762107244942,500.0,0.00030136,120]
[392885951,1762107244993,500.0,0.00030136,120]
[392885952,1762107245261,500.0,0.00030136,120]
[392885953,1762107245311,500.0,0.00030136,120]
[392885954,1762107245621,500.0,0.00030136,120]
[392885955,1762107245851,500.0,0.00030136,120]
[392885956,1762107247622,500.0,0.00030136,120]
[392885957,1762107248738,200.0,0.00013924,2]
[392885958,1762107249451,500.0,0.00030136,120]
[392885959,1762107249983,630.22,0.00030136,120]
[392885960,1762107250134,500.0,0.00030136,120]
[392885961,1762107250431,235.4719632,0.00030136,120]
[392885962,1762107250967,500.0,0.00030136,120]
[392885963,1762107251757,500.0,0.00030136,120]
[392885964,1762107252542,661.19,0.00030136,120]
[392885965,1762107252601,500.0,0.00030136,120]
[392885966,1762107252652,500.0,0.00030136,120]
[392885967,1762107252717,663.37,0.00030136,120]
[392885968,1762107253422,500.0,0.00030136,120]
[392885969,1762107253711,500.0,0.00030136,120]
[392885970,1762107254292,538.35,0.00030136,120]
[392885971,1762107254785,500.0,0.00030136,120]
[392885972,1762107256069,597.71,0.00030136,120]
[392885973,1762107256200,500.0,0.00030136,120]
[392885974,1762107257262,965.75,0.00030136,120]
[392885975,1762107257332,500.0,0.00030136,120]
[392885976,1762107257541,500.0,0.00030136,120]
[392885977,1762107257789,500.0,0.00030136,120]
[392885978,1762107258130,500.0,0.00030136,120]
[392885979,1762107259070,500.0,0.00030136,120]
[392885980,1762107260300,500.0,0.00030136,120]
[392885981,1762107261846,500.0,0.00030136,120]
[392885982,1762107262722,635.76,0.00030136,120]
[392885983,1762107263532,758.88,0.00030136,120]
[392885984,1762107263783,500.0,0.00030136,120]
[392885985,1762107263832,500.0,0.00030136,120]
[392885986,1762107264885,500.0,0.00030136,120]
[392885987,1762107265056,500.0,0.00030136,120]
[392885988,1762107266380,500.0,0.00030136,120]
[392885989,1762107266535,500.0,0.00030136,120]
[392885990,1762107266923,1063.13,0.00030136,120]
[392885991,1762107268366,706.61,0.00030136,120]
[392885992,1762107268518,402.8,6.971e-05,2]
[392885993,1762107268725,402.8,7.338e-05,2]
[392885994,1762107268822,500.0,0.00030136,120]
[392885995,1762107268923,402.8,7.705e-05,2]
[392885996,1762107269133,402.8,8.072e-05,2]
[392885997,1762107269339,402.8,8.439e-05,2]
[392885998,1762107269592,402.8,8.806e-05,2]
[392885999,1762107269762,900.0,0.0003013,120]
[392886000,1762107269811,579.62,0.00030136,120]
[392886001,1762107269866,402.8,9.173e-05,2]
[392886002,1762107270007,402.8,9.539e-05,2]
[392886003,1762107270216,402.8,9.906e-05,2]
[392886004,1762107270420,402.8,0.00010273,2]
[392886005,1762107270632,500.0,0.00030136,120]
[392886006,1762107270668,402.8,0.0001064,2]
[392886007,1762107270818,402.8,0.00011007,2]
[392886008,1762107270987,1197.67,0.00030136,120]
[392886009,1762107271033,500.0,0.00030136,120]
[392886010,1762107271078,402.8,0.00011374,2]
[392886011,1762107271137,500.0,0.00030136,120]
[392886012,1762107271192,500.0,0.00030136,120]
[392886013,1762107271252,402.8,0.00011741,2]
[392886014,1762107271954,402.8,0.00012108,2]
[392886015,1762107272158,402.8,0.00012475,2]
[392886016,1762107272245,402.8,0.00012842,2]
[392886017,1762107272320,402.8,0.00013208,2]
[392886018,1762107272543,263.17481218,0.00013575,2]
[392886019,1762107272567,139.62518782,0.00013575,2]
[392886020,1762107272724,402.8,0.00013942,2]
[392886022,1762107273167,513.22551758,0.00030136,120]
[392886023,1762107273242,1379.18,0.00030136,120]
[392886024,1762107273305,500.0,0.00030136,120]
[392886025,1762107273362,500.0,0.00030136,120]
[392886026,1762107273995,656.09,0.00030136,120]
[392886027,1762107274881,2000.0,0.0003013,120]
[392886028,1762107276266,500.0,0.00030136,120]
[392886029,1762107277830,1483.76,0.00030136,120]
[392886030,1762107279075,347.96682498,0.00030136,120]
[392886031,1762107279132,500.0,0.00030136,120]
[392886032,1762107279694,1213.1,0.00030136,120]
[392886033,1762107280440,547.56,0.00030136,120]
[392886034,1762107280779,1094.3,0.00030136,120]
[392886035,1762107281691,500.0,0.00030136,120]
[392886063,1762107283221,500.0,0.00030136,120]
[392886065,1762107283909,500.0,0.00030136,120]
[392886066,1762107284168,500.0,0.00030136,120]
[392886067,1762107284520,500.0,0.00030136,120]
[392886068,1762107285758,154.77940427,0.00030136,120]
[392886069,1762107286769,500.0,0.00030136,120]
[392886070,1762107287954,500.0,0.00030136,120]
[392886071,1762107288112,300.0,0.00030136,120]
[392886072,1762107288300,500.0,0.00030136,120]
[392886074,1762107288453,603.96,0.00030136,120]
[392886075,1762107288508,500.0,0.00030136,120]
[392886077,1762107288593,2000.0,0.0003013,120]
[392886079,1762107290781,1298.44,0.00030136,120]
[392886080,1762107292255,500.0,0.00030136,120]
[392886081,1762107292931,514.23,0.00030136,120]
[392886082,1762107293118,196.12121559,0.00030136,120]
[392886083,1762107294453,500.0,0.00030136,120]
[392886084,1762107294557,1446.87,0.00030136,120]
[392886085,1762107295296,500.0,0.00030136,120]
[392886086,1762107295824,500.0,0.00030136,120]
[392886087,1762107297786,500.0,0.00030136,120]
[392886089,1762107300934,500.0,0.00030136,120]
[392886090,1762107301012,500.0,0.00030136,120]
[392886091,1762107301826,1300.0,0.0003013,120]
[392886092,1762107303435,500.0,0.00030136,120]
[392886093,1762107305393,500.0,0.00030136,120]
[392886094,1762107306771,500.0,0.00030136,120]
[392886095,1762107306975,500.0,0.00030136,120]
[392886096,1762107307848,500.0,0.00030136,120]
[392886097,1762107308254,683.94,0.00030136,120]
[392886098,1762107309208,1502.96,0.00030136,120]
[392886099,1762107309418,500.0,0.00030136,120]
[392886100,1762107309848,500.0,0.00030136,120]
[392886101,1762107310421,500.0,0.00030136,120]
[392886102,1762107310863,500.0,0.00030136,120]
[392886103,1762107312736,500.0,0.00030136,120]
[392886104,1762107312818,167.3363456,0.00030136,120]
[392886105,1762107313248,500.0,0.00030136,120]
[392886106,1762107315111,500.0,0.00030136,120]
[392886107,1762107315420,524.74,0.00030136,120]
[392886108,1762107315834,500.0,0.00030136,120]
[392886109,1762107316198,500.0,0.00030136,120]
[392886110,1762107316827,500.0,0.00030136,120]
[392886111,1762107317171,500.0,0.00030136,120]
[392886112,1762107317397,500.0,0.00030136,120]
[392886113,1762107317570,740.03,0.00030136,120]
[392886114,1762107318101,255.67814404,0.00030136,120]
[392886115,1762107318504,500.0,0.00030136,120]
[392886116,1762107319632,419.33523318,0.00030136,120]
[392886117,1762107320093,500.0,0.00030136,120]
[392886118,1762107320204,500.0,0.00030136,120]
[392886119,1762107321024,500.0,0.00030136,120]
[392886120,1762107321633,500.0,0.00030136,120]
[392886121,1762107321715,1168.8,0.00030136,120]
[392886123,1762107322631,500.0,0.00030136,120]
[392886124,1762107322957,500.0,0.00030136,120]
[392886125,1762107323007,404.66335365,0.00030136,120]
[392886126,1762107323278,500.0,0.00030136,120]
[392886127,1762107323626,500.0,0.00030136,120]
[392886128,1762107325192,500.0,0.00030136,120]
[392886129,1762107325942,500.0,0.00030136,120]
[392886130,1762107326462,500.0,0.00030136,120]
[392886131,1762107326670,510.77510293,0.00030136,120]
[392886132,1762107327587,500.0,0.00030136,120]
[392886133,1762107327651,500.0,0.00030136,120]
[392886134,1762107329376,500.0,0.00030136,120]
[392886135,1762107329943,639.19,0.00030136,120]
[392886136,1762107330022,500.0,0.00030136,120]
[392886138,1762107330440,500.0,0.00030136,120]
[392886139,1762107330607,500.0,0.00030136,120]
[392886140,1762107331144,609.67,0.00030136,120]
[392886142,1762107331825,537.875781,0.00030136,120]
[392886143,1762107332013,500.0,0.00030136,120]
[392886144,1762107333117,500.0,0.00030136,120]
[392886145,1762107333341,533.85,0.00030136,120]
[392886146,1762107334699,1050.28,0.00030136,120]
[392886147,1762107335921,500.0,0.00030136,120]
[392886148,1762107336642,500.0,0.00030136,120]
[392886149,1762107336706,500.0,0.00030136,120]
[392886150,1762107336869,500.0,0.00030136,120]
[392886151,1762107337111,500.0,0.00030136,120]
[392886153,1762107339011,500.0,0.00030136,120]
[392886154,1762107339142,500.0,0.00030136,120]
[392886155,1762107339550,500.0,0.00030136,120]
[392886156,1762107339607,500.0,0.00030136,120]
[392886158,1762107341646,347.30191518,0.00030136,120]
[392886159,1762107341782,500.0,0.00030136,120]
[392886160,1762107342446,500.0,0.00030136,120]
[392886162,1762107343109,500.0,0.00030136,120]
[392886163,1762107343475,500.0,0.00030136,120]
[392886164,1762107343929,500.0,0.00030136,120]
[392886165,1762107344005,500.0,0.00030136,120]
[392886166,1762107344227,500.0,0.00030136,120]
[392886168,1762107344390,500.0,0.00030136,120]
[392886169,1762107345427,500.0,0.00030136,120]
[392886170,1762107346793,500.0,0.00030136,120]
[392886171,1762107348250,436.0523393,0.00030136,120]
[392886173,1762107348834,500.0,0.00030136,120]
[392886174,1762107349027,500.0,0.00030136,120]
[392886176,1762107350387,500.0,0.00030136,120]
[392886177,1762107350602,527.80507777,0.00030136,120]
[392886178,1762107351223,500.0,0.00030136,120]
[392886179,1762107351356,500.0,0.00030136,120]
[392886181,1762107352599,500.0,0.00030136,120]
[392886182,1762107352983,500.0,0.00030136,120]
[392886183,1762107353973,500.0,0.00030136,120]
[392886184,1762107355666,500.0,0.00030136,120]
[392886185,1762107355725,500.0,0.00030136,120]
[392886186,1762107356193,513.75,0.00030136,120]
[392886187,1762107356387,639.68604914,0.00030136,120]
[392886188,1762107356450,500.0,0.00030136,120]
[392886190,1762107357339,513.21,0.00030136,120]
[392886193,1762107358492,500.0,0.00030136,120]
[392886194,1762107359488,500.0,0.00030136,120]
[392886195,1762107359951,500.0,0.00030136,120]
[392886196,1762107360075,500.0,0.00030136,120]
[392886198,1762107361403,500.0,0.00030136,120]
[392886199,1762107362724,500.0,0.00030136,120]
[392886200,1762107363266,500.0,0.00030136,120]
[392886201,1762107363576,500.0,0.00030136,120]
[392886203,1762107364547,500.0,0.00030136,120]
[392886204,1762107364666,500.0,0.00030136,120]
[392886206,1762107365375,500.0,0.00030136,120]
[392886207,1762107365638,500.0,0.00030136,120]
[392886208,1762107366570,500.0,0.00030136,120]
[392886209,1762107366950,500.0,0.00030136,120]
[392886210,1762107367661,500.0,0.00030136,120]
[392886211,1762107367956,500.0,0.00030136,120]
[392886212,1762107368130,500.0,0.00030136,120]
[392886214,1762107368346,500.0,0.00030136,120]
[392886215,1762107368504,1500.0,0.0003013,120]
[392886216,1762107368584,500.0,0.00030136,120]
[392886217,1762107368841,542.72,0.00030136,120]
[392886218,1762107369704,500.0,0.00030136,120]
[392886219,1762107370437,500.0,0.00030136,120]
[392886220,1762107370905,521.89418403,0.00030136,120]
[392886221,1762107370971,500.0,0.00030136,120]
[392886222,1762107372228,500.0,0.00030136,120]
[392886223,1762107372942,500.0,0.00030136,120]
[392886224,1762107373227,500.0,0.00030136,120]
[392886225,1762107373507,500.0,0.00030136,120]
[392886226,1762107373895,500.0,0.00030136,120]
[392886227,1762107374009,500.0,0.00030136,120]
[392886229,1762107374213,500.0,0.00030136,120]
[392886230,1762107374795,500.0,0.00030136,120]
[392886232,1762107375708,500.0,0.00030136,120]
[392886234,1762107377554,500.0,0.00030136,120]
[392886235,1762107377660,500.0,0.00030136,120]
[392886236,1762107377727,500.0,0.00030136,120]
[392886237,1762107378071,269.25654591,0.00030136,120]
[392886238,1762107378262,500.0,0.00030136,120]
[392886239,1762107378314,500.0,0.00030136,120]
[392886242,1762107379562,1426.41,0.00030136,120]
[392886243,1762107380092,500.0,0.00030136,120]
[392886244,1762107380142,9457.58481218,0.00013963,2]
[392886245,1762107380162,5731.24518782,0.00013963,2]
[392886246,1762107380236,664.4,0.00030136,120]
[392886247,1762107380305,500.0,0.00030136,120]
[392886249,1762107380881,500.0,0.00030136,120]
[392886251,1762107381272,500.0,0.00030136,120]
[392886252,1762107381712,599.72220374,0.00030136,120]
[392886253,1762107382991,846.27,0.00030136,120]
[392886255,1762107383347,500.0,0.00030136,120]
[392886256,1762107383441,500.0,0.00030136,120]
[392886258,1762107384078,500.0,0.00030136,120]
[392886260,1762107384772,500.0,0.00030136,120]
[392886261,1762107384965,500.0,0.00030136,120]
[392886262,1762107385022,500.0,0.00030136,120]
[392886263,1762107385291,228.14369834,0.00030136,120]
[392886264,1762107385536,500.0,0.00030136,120]
[392886265,1762107385999,500.0,0.00030136,120]
[392886268,1762107387557,500.0,0.00030136,120]
[392886269,1762107388032,500.0,0.00030136,120]
[392886270,1762107388084,500.0,0.00030136,120]
[392886271,1762107389334,500.0,0.00030136,120]
[392886272,1762107389461,500.0,0.00030136,120]
[392886273,1762107390548,500.0,0.00030136,120]
[392886274,1762107390724,1165.5,0.00030136,120]
[392886275,1762107391313,205.10388259,0.00030136,120]
[392886276,1762107391503,500.0,0.00030136,120]
[392886277,1762107391794,500.0,0.00030136,120]
[392886279,1762107392291,311.54582741,0.00030136,120]
[392886280,1762107393271,500.0,0.00030136,120]
[392886281,1762107394797,500.0,0.00030136,120]
[392886283,1762107395095,750.09,0.00030136,120]
[392886286,1762107395157,484.87668293,0.00030136,120]
[392886294,1762107395335,500.0,0.00030136,120]
[392886296,1762107395458,500.0,0.00030136,120]
[392886315,1762107396994,602.19,0.00030136,120]
[392886316,1762107397918,500.0,0.00030136,120]
[392886317,1762107398261,500.0,0.00030136,120]
[392886318,1762107398554,500.0,0.00030136,120]
[392886319,1762107398611,545.65,0.00030136,120]
[392886320,1762107399565,500.0,0.00030136,120]
[392886321,1762107399971,505.51273205,0.00030136,120]
[392886322,1762107400229,500.0,0.00030136,120]
[392886323,1762107400347,536.22301214,0.00030136,120]
[392886324,1762107401428,500.0,0.00030136,120]
[392886325,1762107401513,209.12963245,0.00030136,120]
[392886326,1762107401741,500.0,0.00030136,120]
[392886327,1762107402321,500.0,0.00030136,120]
[392886328,1762107402800,500.0,0.00030136,120]
[392886329,1762107402956,500.0,0.00030136,120]
[392886330,1762107403432,610.45,0.00030136,120]
[392886331,1762107403674,500.0,0.00030136,120]
[392886332,1762107404812,151.60578054,0.00030136,120]
[392886333,1762107405907,500.0,0.00030136,120]
[392886334,1762107406643,181.46068462,0.00030136,120]
[392886335,1762107407958,520.02,0.00030136,120]
[392886336,1762107408330,500.0,0.00030136,120]
[392886337,1762107408521,548.45,0.00030136,120]
[392886338,1762107408790,500.0,0.00030136,120]
[392886339,1762107408867,500.0,0.00030136,120]
[392886340,1762107409264,500.0,0.00030136,120]
[392886341,1762107410838,500.0,0.00030136,120]
[392886342,1762107411217,744.92,0.00030136,120]
[392886343,1762107411329,500.0,0.00030136,120]
[392886345,1762107411484,500.0,0.00030136,120]
[392886346,1762107411783,500.0,0.00030136,120]
[392886347,1762107412150,500.0,0.00030136,120]
[392886348,1762107412210,2031.87,0.00030136,120]
[392886350,1762107414577,500.0,0.00030136,120]
[392886352,1762107414936,500.0,0.00030136,120]
[392886353,1762107416212,500.0,0.00030136,120]
[392886355,1762107416311,500.0,0.00030136,120]
[392886356,1762107416400,500.0,0.00030136,120]
[392886357,1762107416820,500.0,0.00030136,120]
[392886358,1762107418521,500.0,0.00030136,120]
[392886360,1762107419394,842.6,0.00030136,120]
[392886361,1762107419970,500.0,0.00030136,120]
[392886362,1762107420079,500.0,0.00030136,120]
[392886363,1762107420132,500.0,0.00030136,120]
[392886364,1762107420182,500.0,0.00030136,120]
[392886365,1762107420231,500.0,0.00030136,120]
[392886366,1762107420779,500.0,0.00030136,120]
[392886368,1762107421151,500.0,0.00030136,120]
[392886370,1762107423587,500.0,0.00030136,120]
[392886371,1762107423972,500.0,0.00030136,120]
[392886372,1762107424150,500.0,0.00030136,120]
[392886373,1762107424261,500.0,0.00030136,120]
[392886376,1762107428320,500.0,0.00030136,120]
[392886377,1762107428392,500.0,0.00030136,120]
[392886378,1762107429658,500.0,0.00030136,120]
[392886379,1762107429717,500.0,0.00030136,120]
[392886380,1762107429990,500.0,0.00030136,120]
[392886381,1762107430435,507.48,0.00030136,120]
[392886382,1762107431070,619.02,0.00030136,120]
[392886383,1762107431451,500.0,0.00030136,120]
[392886384,1762107432532,500.0,0.00030136,120]
[392886385,1762107434071,500.0,0.00030136,120]
[392886386,1762107436488,947.32,0.00030136,120]
[392886387,1762107436698,500.0,0.00030136,120]
[392886388,1762107436897,500.0,0.00030136,120]
[392886389,1762107440360,500.0,0.00030136,120]
[392886390,1762107441992,500.0,0.00030136,120]
[392886391,1762107442196,500.0,0.00030136,120]
[392886392,1762107442410,500.0,0.00030136,120]
[392886393,1762107442884,618.56724232,0.00030136,120]
[392886394,1762107442942,500.0,0.00030136,120]
[392886395,1762107443050,500.0,0.00030136,120]
[392886397,1762107443861,500.0,0.00030136,120]
[392886398,1762107444669,500.0,0.00030136,120]
[392886399,1762107444718,296.61221415,0.00030136,120]
[392886400,1762107444931,500.0,0.00030136,120]
[392886402,1762107446217,500.0,0.00030136,120]
[392886403,1762107446465,500.0,0.00030136,120]